[Event "South Island Championships 2023"]
[Site "Oamaru, New Zealand"]
[Date "????.??.??"]
[Round "7.9"]
[White "Wang, Justin Zhide"]
[Black "Black, Ross"]
[Result "1-0"]
[TimeControl "90 + 30"]
[WhiteFideId "4312830"]
[BlackFideId "4304047"]
[WhiteElo "1849"]
[BlackElo "1724"]

1. e4 {[%clk 01:30:55]} {[%emt 00:00:04]} e6 {[%clk 01:29:24]} {[%emt
00:01:36]} 2. d4 {[%clk 01:31:22]} {[%emt 00:00:03]} d5 {[%clk 01:29:41]}
{[%emt 00:00:13]} 3. exd5 {[%clk 01:31:48]} {[%emt 00:00:04]} exd5 {[%clk
01:29:59]} {[%emt 00:00:12]} 4. Bd3 {[%clk 01:32:16]} {[%emt 00:00:02]} Nf6
{[%clk 01:29:56]} {[%emt 00:00:33]} 5. Ne2 {[%clk 01:32:42]} {[%emt 00:00:05]}
Bd6 {[%clk 01:29:16]} {[%emt 00:01:09]} 6. O-O {[%clk 01:32:07]} {[%emt
00:01:04]} O-O {[%clk 01:25:22]} {[%emt 00:04:25]} 7. f4 {[%clk 01:31:14]}
{[%emt 00:01:23]} Bg4 {[%clk 01:23:09]} {[%emt 00:02:42]} 8. Nd2 {[%clk
01:28:57]} {[%emt 00:02:48]} Nc6 {[%clk 01:21:39]} {[%emt 00:02:00]} 9. c3
{[%clk 01:29:20]} {[%emt 00:00:08]} Qd7 {[%clk 01:21:03]} {[%emt 00:01:06]} 10.
Nf3 {[%clk 01:29:44]} {[%emt 00:00:06]} Bxf3 {[%clk 01:17:05]} {[%emt
00:04:26]} 11. Rxf3 {[%clk 01:30:05]} {[%emt 00:00:10]} Rfe8 {[%clk 01:16:50]}
{[%emt 00:00:44]} 12. Ng3 {[%clk 01:26:11]} {[%emt 00:04:25]} g6 {[%clk
01:14:40]} {[%emt 00:02:40]} 13. f5 {[%clk 01:20:53]} {[%emt 00:05:48]} Bxg3
{[%clk 01:14:07]} {[%emt 00:01:02]} 14. hxg3 {[%clk 01:18:11]} {[%emt
00:03:13]} Ne4 {[%clk 01:13:47]} {[%emt 00:00:49]} 15. Qf1 {[%clk 01:16:15]}
{[%emt 00:02:27]} Ne7 {[%clk 01:07:20]} {[%emt 00:06:57]} 16. g4 {[%clk
01:13:39]} {[%emt 00:03:05]} g5 {[%clk 01:03:55]} {[%emt 00:03:55]} 17. Bxe4
{[%clk 01:07:49]} {[%emt 00:06:21]} dxe4 {[%clk 01:04:15]} {[%emt 00:00:10]} 18.
Rf2 {[%clk 01:08:07]} {[%emt 00:00:13]} f6 {[%clk 01:03:05]} {[%emt 00:01:39]}
19. Bxg5 {[%clk 01:08:02]} {[%emt 00:00:35]} fxg5 {[%clk 01:03:09]} {[%emt
00:00:26]} 20. f6 {[%clk 01:08:23]} {[%emt 00:00:09]} Kh8 {[%clk 01:01:15]}
{[%emt 00:02:24]} 21. fxe7 {[%emt 00:00:32]} Qxe7 {[%clk 01:00:55]} {[%emt
00:00:42]} 22. Rf7 {[%clk 01:08:43]} {[%emt 00:00:17]} Qd6 {[%clk 00:59:58]}
{[%emt 00:01:25]} 23. Qf5 {[%clk 01:08:52]} {[%emt 00:00:21]} Qh6 {[%clk
00:56:43]} {[%emt 00:03:45]} 24. Re1 {[%clk 00:56:36]} {[%emt 00:12:47]} e3
{[%clk 00:56:59]} {[%emt 00:00:14]} 25. Re2 {[%clk 00:56:15]} {[%emt 00:00:52]}
Rac8 {[%clk 00:54:24]} {[%emt 00:03:04]} 26. g3 {[%clk 00:56:35]} {[%emt
00:00:10]} Qg6 {[%clk 00:36:12]} {[%emt 00:18:42]} 27. Qxg6 {[%clk 00:55:08]}
{[%emt 00:01:58]} hxg6 {[%clk 00:36:30]} {[%emt 00:00:11]} 28. Rf3 {[%clk
00:55:35]} {[%emt 00:00:03]} Kg7 {[%clk 00:35:38]} {[%emt 00:01:21]} 29. Rexe3
{[%clk 00:56:00]} {[%emt 00:00:06]} Rxe3 {[%clk 00:35:06]} {[%emt 00:01:02]} 30.
Rxe3 {[%clk 00:56:24]} {[%emt 00:00:06]} Kf6 {[%clk 00:35:13]} {[%emt
00:00:23]} 31. Kf2 {[%clk 00:56:50]} {[%emt 00:00:04]} b5 {[%clk 00:35:00]}
{[%emt 00:00:43]} 32. Re5 {[%clk 00:57:05]} {[%emt 00:00:15]} c6 {[%clk
00:34:46]} {[%emt 00:00:44]} 33. Rc5 {[%clk 00:57:32]} {[%emt 00:00:04]} a5
{[%clk 00:34:30]} {[%emt 00:00:46]} 34. d5 {[%clk 00:57:58]} {[%emt 00:00:04]}
Ke5 {[%clk 00:33:40]} {[%emt 00:01:19]} 35. dxc6+ {[%clk 00:58:24]} {[%emt
00:00:05]} Kd6 {[%clk 00:33:27]} {[%emt 00:00:42]} 36. Rxb5 {[%clk 00:58:46]}
{[%emt 00:00:09]} Kxc6 {[%clk 00:33:24]} {[%emt 00:00:33]} 37. Rxg5 {[%clk
00:59:10]} {[%emt 00:00:06]} Rf8+ {[%clk 00:33:05]} {[%emt 00:00:48]} 38. Ke2
{[%clk 00:59:32]} {[%emt 00:00:08]} Re8+ {[%clk 00:33:18]} {[%emt 00:00:16]} 39.
Kd2 {[%clk 00:59:57]} {[%emt 00:00:06]} 1-0

[Event "South Island Championships 2023"]
[Site "Oamaru, New Zealand"]
[Date "????.??.??"]
[Round "7.4"]
[White "Stark, John"]
[Black "Ha, Timothy Huy Minh"]
[Result "1/2-1/2"]
[TimeControl "90 + 30"]
[WhiteFideId "4300963"]
[BlackFideId "12417246"]
[WhiteElo "2204"]
[BlackElo "1843"]

1. d4 {[%clk 01:30:56]} {[%emt 00:00:03]} d5 {[%clk 01:30:53]} {[%emt
00:00:08]} 2. c4 {[%clk 01:31:22]} {[%emt 00:00:04]} e6 {[%clk 01:31:19]}
{[%emt 00:00:03]} 3. Nc3 {[%clk 01:31:43]} {[%emt 00:00:09]} Nf6 {[%clk
01:31:38]} {[%emt 00:00:12]} 4. cxd5 {[%clk 01:32:10]} {[%emt 00:00:03]} exd5
{[%clk 01:32:02]} {[%emt 00:00:05]} 5. Bg5 {[%clk 01:32:36]} {[%emt 00:00:03]}
c6 {[%clk 01:32:28]} {[%emt 00:00:05]} 6. Nf3 {[%clk 01:32:32]} {[%emt
00:00:35]} Be7 {[%clk 01:30:40]} {[%emt 00:02:17]} 7. Qc2 {[%clk 01:32:39]}
{[%emt 00:00:23]} O-O {[%clk 01:29:41]} {[%emt 00:01:30]} 8. e3 {[%clk
01:33:07]} {[%emt 00:00:02]} Be6 {[%clk 01:27:59]} {[%emt 00:02:12]} 9. Bd3
{[%clk 01:33:17]} {[%emt 00:00:20]} h6 {[%clk 01:28:18]} {[%emt 00:00:11]} 10.
Bh4 {[%clk 01:30:08]} {[%emt 00:03:39]} Ne8 {[%clk 01:28:20]} {[%emt 00:00:28]}
11. Bxe7 {[%clk 01:29:09]} {[%emt 00:01:28]} Qxe7 {[%clk 01:28:40]} {[%emt
00:00:10]} 12. O-O {[%clk 01:29:34]} {[%emt 00:00:04]} Nd6 {[%clk 01:29:04]}
{[%emt 00:00:07]} 13. b4 {[%clk 01:27:52]} {[%emt 00:02:12]} a6 {[%clk
01:26:44]} {[%emt 00:02:50]} 14. Rab1 {[%clk 01:25:59]} {[%emt 00:02:23]} b5
{[%clk 01:25:50]} {[%emt 00:01:25]} 15. Ne5 {[%clk 01:24:39]} {[%emt 00:01:50]}
Rc8 {[%clk 01:25:47]} {[%emt 00:00:31]} 16. f4 {[%clk 01:24:28]} {[%emt
00:00:43]} Nc4 {[%clk 01:25:47]} {[%emt 00:00:32]} 17. Bxc4 {[%clk 01:23:59]}
{[%emt 00:00:57]} bxc4 {[%clk 01:25:34]} {[%emt 00:00:44]} 18. f5 {[%clk
01:15:41]} {[%emt 00:08:47]} Bd7 {[%clk 01:25:59]} {[%emt 00:00:05]} 19. Qf2
{[%clk 01:13:59]} {[%emt 00:02:12]} f6 {[%clk 01:21:12]} {[%emt 00:05:18]} 20.
Ng6 {[%clk 01:07:55]} {[%emt 00:06:33]} Qf7 {[%clk 01:15:34]} {[%emt 00:06:08]}
21. e4 {[%clk 01:06:09]} {[%emt 00:02:17]} Re8 {[%clk 01:15:34]} {[%emt
00:00:29]} 22. e5 {[%clk 01:04:46]} {[%emt 00:01:52]} fxe5 {[%clk 01:14:41]}
{[%emt 00:01:24]} 23. dxe5 {[%clk 01:02:33]} {[%emt 00:02:43]} Bc8 {[%clk
01:15:05]} {[%emt 00:00:07]} 24. Na4 {[%clk 00:58:08]} {[%emt 00:04:55]} Kh7
{[%clk 01:09:04]} {[%emt 00:06:30]} 25. g4 {[%clk 00:47:57]} {[%emt 00:10:41]}
a5 {[%clk 01:07:03]} {[%emt 00:02:31]} 26. Nb6 {[%clk 00:43:43]} {[%emt
00:04:44]} Ra6 {[%clk 01:06:31]} {[%emt 00:01:01]} 27. Nxc8 {[%clk 00:43:33]}
{[%emt 00:00:41]} Rxc8 {[%clk 01:06:55]} {[%emt 00:00:06]} 28. g5 {[%clk
00:39:46]} {[%emt 00:04:16]} Qa7 {[%clk 01:06:54]} {[%emt 00:00:32]} 29. gxh6
{[%clk 00:35:37]} {[%emt 00:04:38]} Kxh6 {[%clk 01:05:46]} {[%emt 00:01:39]} 30.
b5 {[%clk 00:28:15]} {[%emt 00:07:53]} Qxf2+ {[%clk 01:01:38]} {[%emt
00:04:37]} 31. Kxf2 {[%clk 00:22:40]} {[%emt 00:06:04]} Rb6 {[%clk 01:01:58]}
{[%emt 00:00:10]} 32. Ne7 {[%clk 00:16:32]} {[%emt 00:06:38]} Rc7 {[%clk
00:50:59]} {[%emt 00:11:28]} 33. bxc6 {[%clk 00:16:47]} {[%emt 00:00:16]} Rxb1
{[%clk 00:49:40]} {[%emt 00:01:49]} 34. Rxb1 {[%clk 00:17:17]} Nxc6 {[%clk
00:47:45]} {[%emt 00:02:24]} 35. Nxd5 {[%clk 00:06:39]} {[%emt 00:11:08]} Rd7
{[%clk 00:41:44]} {[%emt 00:06:30]} 36. Rb6 {[%clk 00:04:58]} {[%emt 00:02:12]}
Rxd5 {[%clk 00:40:47]} {[%emt 00:01:27]} 37. Rxc6+ {[%clk 00:05:25]} {[%emt
00:00:03]} Kg5 {[%clk 00:41:14]} {[%emt 00:00:03]} 38. f6 {[%clk 00:04:13]}
{[%emt 00:01:42]} gxf6 {[%clk 00:36:57]} {[%emt 00:04:47]} 39. exf6 {[%clk
00:04:25]} {[%emt 00:00:18]} Kg6 {[%clk 00:35:45]} {[%emt 00:01:42]} 40. Ke3
{[%clk 00:03:36]} {[%emt 00:01:17]} c3 {[%clk 00:34:38]} {[%emt 00:01:39]} 41.
Rxc3 {[%clk 00:03:05]} {[%emt 00:01:02]} Kxf6 {[%clk 00:35:02]} {[%emt
00:00:06]} 42. Rc4 {[%clk 00:01:37]} {[%emt 00:01:58]} Rg5 {[%clk 00:30:25]}
{[%emt 00:05:06]} 43. h4 {[%clk 00:01:18]} {[%emt 00:00:50]} Rg3+ {[%clk
00:30:48]} {[%emt 00:00:06]} 44. Kf4 {[%clk 00:00:51]} {[%emt 00:00:56]} Ra3
{[%clk 00:31:08]} {[%emt 00:00:11]} 45. Rc6+ {[%clk 00:01:15]} {[%emt
00:00:06]} Kg7 {[%clk 00:31:23]} {[%emt 00:00:15]} 46. Rc2 {[%clk 00:01:38]}
{[%emt 00:00:06]} Kg6 {[%clk 00:30:52]} {[%emt 00:01:02]} 47. Rh2 {[%clk
00:01:33]} {[%emt 00:00:32]} Kh5 {[%clk 00:28:33]} {[%emt 00:02:52]} 48. Ke5
{[%clk 00:00:42]} {[%emt 00:01:21]} Rg3 {[%clk 00:28:33]} {[%emt 00:00:30]} 49.
Kd5 {[%clk 00:00:44]} {[%emt 00:00:29]} a4 {[%clk 00:29:01]} {[%emt 00:00:02]}
50. Kc4 {[%clk 00:00:45]} {[%emt 00:00:28]} a3 {[%clk 00:29:25]} {[%emt
00:00:07]} 51. Kb4 {[%clk 00:00:56]} {[%emt 00:00:17]} Rf3 {[%clk 00:29:45]}
{[%emt 00:00:11]} 52. Ka4 {[%clk 00:00:37]} {[%emt 00:00:50]} Rg3 {[%clk
00:30:08]} {[%emt 00:00:07]} 53. Kb4 {[%clk 00:00:34]} {[%emt 00:00:33]} Rf3
{[%clk 00:30:33]} {[%emt 00:00:04]} 54. Rh1 {[%clk 00:00:46]} {[%emt 00:00:19]}
Rg3 {[%clk 00:30:52]} {[%emt 00:00:11]} 55. Rh2 {[%clk 00:00:36]} {[%emt
00:00:40]} 1/2-1/2

[Event "South Island Championships 2023"]
[Site "Oamaru, New Zealand"]
[Date "????.??.??"]
[Round "7.2"]
[White "Zhang, Kendrick Botong"]
[Black "Johnson, Quentin J F"]
[Result "1/2-1/2"]
[TimeControl "90 + 30"]
[WhiteFideId "4307704"]
[BlackFideId "4301480"]
[WhiteElo "2067"]
[BlackElo "2089"]

1. e4 {[%clk 01:29:00]} {[%emt 00:02:00]} c5 {[%clk 01:30:56]} {[%emt
00:00:04]} 2. Nf3 {[%clk 01:29:19]} {[%emt 00:00:09]} e6 {[%clk 01:31:23]}
{[%emt 00:00:04]} 3. d4 {[%clk 01:29:44]} {[%emt 00:00:06]} cxd4 {[%clk
01:31:49]} {[%emt 00:00:04]} 4. Nxd4 {[%clk 01:30:05]} {[%emt 00:00:08]} Nc6
{[%clk 01:32:16]} {[%emt 00:00:03]} 5. Nc3 {[%clk 01:30:27]} {[%emt 00:00:08]}
Qc7 {[%clk 01:32:40]} {[%emt 00:00:06]} 6. Be3 {[%clk 01:30:52]} {[%emt
00:00:05]} a6 {[%clk 01:33:06]} {[%emt 00:00:04]} 7. Qd2 {[%clk 01:31:13]}
{[%emt 00:00:09]} Nf6 {[%clk 01:33:30]} {[%emt 00:00:06]} 8. f3 {[%clk
01:26:50]} {[%emt 00:04:53]} Be7 {[%clk 01:33:34]} {[%emt 00:00:27]} 9. O-O-O
{[%clk 01:27:07]} {[%emt 00:00:12]} b5 {[%clk 01:33:52]} {[%emt 00:00:12]} 10.
g4 {[%clk 01:18:13]} {[%emt 00:09:24]} Nxd4 {[%clk 01:31:11]} {[%emt 00:03:11]}
11. Bxd4 {[%clk 01:18:17]} {[%emt 00:00:26]} Bb7 {[%clk 01:29:00]} {[%emt
00:02:41]} 12. g5 {[%clk 01:15:00]} {[%emt 00:03:47]} Nh5 {[%clk 01:29:03]}
{[%emt 00:00:27]} 13. Be5 {[%clk 01:15:13]} {[%emt 00:00:17]} Qxe5 {[%clk
01:23:50]} {[%emt 00:05:44]} 14. Qxd7+ {[%clk 01:15:34]} {[%emt 00:00:08]} Kf8
{[%clk 01:24:15]} {[%emt 00:00:06]} 15. Qxb7 {[%clk 01:15:58]} {[%emt
00:00:05]} Qb8 {[%clk 01:24:29]} {[%emt 00:00:16]} 16. Rd7 {[%clk 00:50:50]}
{[%emt 00:25:38]} Qxb7 {[%clk 01:22:01]} {[%emt 00:02:58]} 17. Rxb7 {[%clk
00:51:01]} {[%emt 00:00:19]} Bxg5+ {[%clk 01:22:13]} {[%emt 00:00:19]} 18. Kb1
{[%clk 00:51:21]} {[%emt 00:00:10]} g6 {[%clk 01:12:59]} {[%emt 00:09:43]} 19.
a4 {[%clk 00:45:54]} {[%emt 00:05:58]} bxa4 {[%clk 00:50:11]} {[%emt 00:23:18]}
20. Nxa4 {[%clk 00:43:58]} {[%emt 00:02:24]} Be3 {[%clk 00:49:58]} {[%emt
00:00:44]} 21. Bc4 {[%clk 00:33:24]} {[%emt 00:11:04]} Nf4 {[%clk 00:50:19]}
{[%emt 00:00:10]} 22. Rd1 {[%clk 00:33:13]} {[%emt 00:00:40]} Kg7 {[%clk
00:50:13]} {[%emt 00:00:36]} 23. Rdd7 {[%clk 00:30:51]} {[%emt 00:02:52]} Rhf8
{[%clk 00:50:13]} {[%emt 00:00:30]} 24. Nb6 {[%clk 00:18:05]} {[%emt 00:13:17]}
Rab8 {[%clk 00:35:57]} {[%emt 00:14:46]} 25. Rxf7+ {[%clk 00:13:54]} {[%emt
00:04:40]} Rxf7 {[%clk 00:36:15]} {[%emt 00:00:12]} 26. Rxb8 {[%clk 00:14:20]}
{[%emt 00:00:04]} a5 {[%clk 00:36:29]} {[%emt 00:00:16]} 27. Bb3 {[%clk
00:09:50]} {[%emt 00:05:00]} Ne2 {[%clk 00:24:18]} {[%emt 00:12:41]} 28. Bxe6
{[%clk 00:05:27]} {[%emt 00:04:53]} Rxf3 {[%clk 00:24:30]} {[%emt 00:00:18]} 29.
Nc4 {[%clk 00:04:13]} {[%emt 00:01:43]} Rf1+ {[%clk 00:18:50]} {[%emt
00:06:11]} 30. Ka2 {[%clk 00:04:36]} {[%emt 00:00:07]} Bc5 {[%clk 00:19:12]}
{[%emt 00:00:08]} 31. Rb7+ {[%clk 00:01:46]} {[%emt 00:03:20]} Kh6 {[%clk
00:17:41]} {[%emt 00:02:01]} 32. Bg8 {[%clk 00:00:32]} {[%emt 00:01:44]} Nc1+
{[%clk 00:17:25]} {[%emt 00:00:46]} 33. Kb1 {[%clk 00:00:56]} {[%emt 00:00:06]}
Ne2+ {[%clk 00:15:11]} {[%emt 00:02:43]} 34. Ka2 {[%clk 00:01:20]} {[%emt
00:00:07]} Nc1+ {[%clk 00:01:52]} {[%emt 00:13:49]} 1/2-1/2

[Event "South Island Championships 2023"]
[Site "Oamaru, New Zealand"]
[Date "????.??.??"]
[Round "7.1"]
[White "McNabb, Matthew D"]
[Black "Lee, Edward S"]
[Result "1/2-1/2"]
[TimeControl "90 + 30"]
[WhiteFideId "4300823"]
[BlackFideId "4303229"]
[WhiteElo "2236"]
[BlackElo "2088"]

1. d4 {[%clk 01:30:56]} {[%emt 00:00:03]} f5 {[%clk 01:30:54]} {[%emt
00:00:06]} 2. g4 {[%clk 01:31:18]} {[%emt 00:00:09]} fxg4 {[%clk 01:31:17]}
{[%emt 00:00:07]} 3. h3 {[%clk 01:31:44]} {[%emt 00:00:04]} d5 {[%clk
01:31:40]} {[%emt 00:00:06]} 4. Bf4 {[%clk 01:30:53]} {[%emt 00:01:21]} Nf6
{[%clk 01:30:46]} {[%emt 00:01:25]} 5. Nc3 {[%clk 01:28:09]} {[%emt 00:03:14]}
a6 {[%clk 01:29:34]} {[%emt 00:01:42]} 6. Bg2 {[%clk 01:28:03]} {[%emt
00:00:36]} Nc6 {[%clk 01:28:54]} {[%emt 00:01:10]} 7. Bg5 {[%clk 01:21:11]}
{[%emt 00:07:22]} e6 {[%clk 01:24:06]} {[%emt 00:05:18]} 8. hxg4 {[%clk
01:21:02]} {[%emt 00:00:38]} Be7 {[%clk 01:24:29]} {[%emt 00:00:07]} 9. e3
{[%clk 01:15:58]} {[%emt 00:05:35]} b5 {[%clk 01:22:01]} {[%emt 00:02:57]} 10.
a3 {[%clk 01:14:59]} {[%emt 00:01:30]} Bb7 {[%clk 01:20:26]} {[%emt 00:02:05]}
11. f4 {[%clk 01:09:33]} {[%emt 00:05:56]} Qd6 {[%clk 01:14:26]} {[%emt
00:06:30]} 12. Bxf6 {[%clk 01:08:09]} {[%emt 00:01:53]} Bxf6 {[%clk 01:10:35]}
{[%emt 00:04:20]} 13. g5 {[%clk 00:59:03]} {[%emt 00:09:37]} Bxd4 {[%clk
01:05:37]} {[%emt 00:05:28]} 14. exd4 {[%clk 00:58:23]} {[%emt 00:01:10]} Qxf4
{[%clk 01:05:59]} {[%emt 00:00:07]} 15. Nce2 {[%clk 00:54:26]} {[%emt
00:04:28]} Qxg5 {[%clk 01:05:42]} {[%emt 00:00:46]} 16. Bf3 {[%clk 00:42:26]}
{[%emt 00:12:31]} e5 {[%clk 00:43:37]} {[%emt 00:22:35]} 17. Qd2 {[%clk
00:29:03]} {[%emt 00:13:53]} Qxd2+ {[%clk 00:22:52]} {[%emt 00:21:15]} 18. Kxd2
{[%clk 00:29:21]} {[%emt 00:00:12]} O-O-O {[%clk 00:23:01]} {[%emt 00:00:20]}
19. Bg4+ {[%clk 00:21:42]} {[%emt 00:08:10]} Kb8 {[%clk 00:23:15]} {[%emt
00:00:16]} 20. Nf3 {[%clk 00:21:55]} {[%emt 00:00:18]} Nxd4 {[%clk 00:18:17]}
{[%emt 00:05:28]} 21. Nexd4 {[%clk 00:19:48]} {[%emt 00:02:36]} exd4 {[%clk
00:18:39]} {[%emt 00:00:08]} 22. Rae1 {[%clk 00:17:34]} {[%emt 00:02:44]} Rdf8
{[%clk 00:17:46]} {[%emt 00:01:23]} 23. Re7 {[%clk 00:15:24]} {[%emt 00:02:40]}
d3 {[%clk 00:09:22]} {[%emt 00:08:54]} 24. Ne5 {[%clk 00:15:04]} {[%emt
00:00:50]} Rf4 {[%clk 00:06:35]} {[%emt 00:03:16]} 25. Kxd3 {[%clk 00:14:11]}
{[%emt 00:01:23]} c5 {[%clk 00:05:14]} {[%emt 00:01:51]} 26. Rxg7 {[%clk
00:06:14]} {[%emt 00:08:27]} Rd4+ {[%clk 00:04:20]} {[%emt 00:01:25]} 27. Kc3
{[%clk 00:06:17]} {[%emt 00:00:27]} Rxg4 {[%clk 00:04:13]} {[%emt 00:00:36]} 28.
Rxb7+ {[%clk 00:05:43]} {[%emt 00:01:06]} Kxb7 {[%clk 00:04:04]} {[%emt
00:00:38]} 29. Nxg4 {[%clk 00:06:10]} {[%emt 00:00:03]} h5 {[%clk 00:04:22]}
{[%emt 00:00:11]} 30. Nf6 {[%clk 00:03:11]} {[%emt 00:03:30]} d4+ {[%clk
00:04:34]} {[%emt 00:00:18]} 31. Kd3 {[%clk 00:03:37]} {[%emt 00:00:04]} h4
{[%clk 00:04:57]} {[%emt 00:00:07]} 32. Rh3 {[%clk 00:02:38]} {[%emt 00:01:29]}
Kc6 {[%clk 00:05:21]} {[%emt 00:00:06]} 33. b4 {[%clk 00:02:37]} {[%emt
00:00:32]} a5 {[%clk 00:04:03]} {[%emt 00:01:48]} 34. bxc5 {[%clk 00:02:02]}
{[%emt 00:01:05]} Kxc5 {[%clk 00:04:24]} {[%emt 00:00:08]} 35. Ne4+ {[%clk
00:01:36]} {[%emt 00:00:55]} Kd5 {[%clk 00:04:45]} {[%emt 00:00:09]} 36. Ng5
{[%clk 00:01:59]} {[%emt 00:00:08]} Rg8 {[%clk 00:03:43]} {[%emt 00:01:32]} 37.
Ne4 {[%clk 00:01:31]} {[%emt 00:00:59]} Rh8 {[%clk 00:04:06]} {[%emt 00:00:06]}
38. Ng5 {[%clk 00:01:40]} {[%emt 00:00:21]} Rg8 {[%clk 00:04:29]} {[%emt
00:00:06]} 39. Ne4 {[%clk 00:00:49]} {[%emt 00:01:21]} Rh8 {[%clk 00:04:54]}
{[%emt 00:00:05]} 40. Ng5 {[%clk 00:00:53]} {[%emt 00:00:27]} Rg8 {[%clk
00:05:15]} {[%emt 00:00:09]} 41. Ne4 {[%clk 00:01:21]} {[%emt 00:00:02]} Rh8
{[%clk 00:05:41]} {[%emt 00:00:04]} 1/2-1/2

[Event "South Island Championships 2023"]
[Site "Oamaru, New Zealand"]
[Date "????.??.??"]
[Round "7.7"]
[White "Coleman, Phil"]
[Black "Lukey, Stephen G"]
[Result "0-1"]
[TimeControl "90 + 30"]
[WhiteFideId "4319443"]
[BlackFideId "4300386"]
[WhiteElo "1872"]
[BlackElo "2307"]

1. e4 {[%clk 01:30:58]} {[%emt 00:00:02]} e6 {[%clk 01:22:37]} {[%emt
00:08:23]} 2. Nf3 {[%clk 01:30:48]} {[%emt 00:00:40]} d5 {[%clk 01:22:22]}
{[%emt 00:00:44]} 3. Nc3 {[%clk 01:31:06]} {[%emt 00:00:12]} Nf6 {[%clk
01:22:31]} {[%emt 00:00:21]} 4. exd5 {[%clk 01:31:04]} {[%emt 00:00:33]} exd5
{[%clk 01:22:55]} {[%emt 00:00:06]} 5. d4 {[%clk 01:31:21]} {[%emt 00:00:13]}
Bd6 {[%clk 01:22:59]} {[%emt 00:00:26]} 6. Be2 {[%clk 01:30:25]} {[%emt
00:01:25]} h6 {[%clk 01:22:32]} {[%emt 00:00:58]} 7. h3 {[%clk 01:30:28]}
{[%emt 00:00:26]} c6 {[%clk 01:22:32]} {[%emt 00:00:30]} 8. Be3 {[%clk
01:30:22]} {[%emt 00:00:36]} Bf5 {[%clk 01:22:45]} {[%emt 00:00:17]} 9. Qd2
{[%clk 01:24:13]} {[%emt 00:06:40]} Qc7 {[%clk 01:21:31]} {[%emt 00:01:43]} 10.
O-O-O {[%clk 01:19:29]} {[%emt 00:05:14]} Nbd7 {[%clk 01:20:27]} {[%emt
00:01:34]} 11. Rhe1 {[%clk 01:17:45]} {[%emt 00:02:14]} O-O-O {[%clk 01:20:49]}
{[%emt 00:00:09]} 12. Kb1 {[%clk 01:13:01]} {[%emt 00:05:13]} Bb4 {[%clk
01:14:01]} {[%emt 00:07:18]} 13. Bd3 {[%clk 01:12:26]} {[%emt 00:01:06]} Bxd3
{[%clk 01:14:18]} {[%emt 00:00:13]} 14. cxd3 {[%clk 01:10:43]} {[%emt
00:02:13]} Rhe8 {[%clk 01:10:42]} {[%emt 00:04:05]} 15. Rc1 {[%clk 01:10:14]}
{[%emt 00:01:00]} a6 {[%clk 01:09:11]} {[%emt 00:02:00]} 16. Bf4 {[%clk
01:01:49]} {[%emt 00:08:55]} Bd6 {[%clk 01:09:09]} {[%emt 00:00:32]} 17. Be3
{[%clk 00:59:42]} {[%emt 00:02:38]} Qa5 {[%clk 00:59:37]} {[%emt 00:10:02]} 18.
Qc2 {[%clk 00:57:14]} {[%emt 00:02:58]} Bb4 {[%clk 00:52:14]} {[%emt 00:07:53]}
19. Qb3 {[%clk 00:56:37]} {[%emt 00:01:06]} Re7 {[%clk 00:46:08]} {[%emt
00:06:36]} 20. Re2 {[%clk 00:55:14]} {[%emt 00:01:53]} Rde8 {[%clk 00:42:55]}
{[%emt 00:03:43]} 21. Rec2 {[%clk 00:54:05]} {[%emt 00:01:40]} Bxc3 {[%clk
00:32:44]} {[%emt 00:10:41]} 22. Rxc3 {[%clk 00:53:07]} {[%emt 00:01:28]} Re6
{[%clk 00:31:36]} {[%emt 00:01:38]} 23. Bf4 {[%clk 00:45:18]} {[%emt 00:08:18]}
g5 {[%clk 00:31:15]} {[%emt 00:00:50]} 24. Be5 {[%clk 00:44:26]} {[%emt
00:01:22]} Nh7 {[%clk 00:27:16]} {[%emt 00:04:28]} 25. g4 {[%clk 00:38:05]}
{[%emt 00:06:51]} Nhf8 {[%clk 00:24:00]} {[%emt 00:03:46]} 26. Bg3 {[%clk
00:31:48]} {[%emt 00:06:48]} Ng6 {[%clk 00:24:26]} {[%emt 00:00:05]} 27. h4
{[%clk 00:27:52]} {[%emt 00:04:25]} gxh4 {[%clk 00:16:32]} {[%emt 00:08:25]} 28.
Bxh4 {[%clk 00:24:08]} {[%emt 00:04:14]} Nf4 {[%clk 00:16:43]} {[%emt
00:00:18]} 29. Ng1 {[%clk 00:21:46]} {[%emt 00:02:51]} Re1 {[%clk 00:15:57]}
{[%emt 00:01:17]} 30. f3 {[%clk 00:18:14]} {[%emt 00:04:02]} Rxc1+ {[%clk
00:16:10]} {[%emt 00:00:16]} 31. Rxc1 {[%emt 00:00:22]} Qd2 {[%emt 00:01:04]}
32. Bg3 {[%clk 00:11:57]} {[%emt 00:05:22]} Nxd3 {[%clk 00:11:06]} {[%emt
00:05:34]} 33. Rd1 {[%clk 00:09:15]} {[%emt 00:03:11]} Qg2 {[%clk 00:10:48]}
{[%emt 00:00:49]} 34. Qxd3 {[%clk 00:08:42]} {[%emt 00:01:03]} Qxg3 {[%clk
00:11:12]} {[%emt 00:00:05]} 35. Ne2 {[%clk 00:08:09]} {[%emt 00:01:04]} Qf2
{[%clk 00:10:52]} {[%emt 00:00:50]} 36. Nc3 {[%clk 00:04:39]} {[%emt 00:04:00]}
Re3 {[%clk 00:10:19]} {[%emt 00:01:03]} 37. Qh7 {[%clk 00:04:20]} {[%emt
00:00:49]} Qxf3 {[%clk 00:10:17]} {[%emt 00:00:33]} 38. Rg1 {[%clk 00:03:30]}
{[%emt 00:01:19]} Re6 {[%clk 00:06:43]} {[%emt 00:04:01]} 39. Rc1 {[%clk
00:01:37]} {[%emt 00:02:25]} Kb8 {[%clk 00:05:41]} {[%emt 00:01:32]} 40. Qg8+
{[%clk 00:01:30]} {[%emt 00:00:38]} Ka7 {[%clk 00:05:35]} {[%emt 00:00:35]} 41.
Qd8 {[%clk 00:01:44]} {[%emt 00:00:17]} Nb6 {[%clk 00:05:31]} {[%emt 00:00:34]}
42. a4 {[%clk 00:01:46]} {[%emt 00:00:29]} Qd3+ {[%clk 00:02:58]} {[%emt
00:03:02]} 43. Ka2 {[%clk 00:01:45]} {[%emt 00:00:32]} a5 {[%clk 00:02:54]}
{[%emt 00:00:34]} 44. b4 {[%clk 00:00:41]} {[%emt 00:01:34]} Qc4+ {[%clk
00:03:18]} {[%emt 00:00:05]} 0-1